Cogmind - Beta 13 *** ADVENTURER MODE // 2024.04.02 @ 16:02:31 Player: Cheeseinator Result: Destroyed by A-27 Freighter with PD Laser Performance ------------- Evolutions (4) 2000 Regions Visited (6) 1200 Robots Destroyed (65) 325 Value Destroyed (1470) 1470 Prototype IDs (5) 100 Alien Tech Used (0) 0 Bonus (819) 819 TOTAL SCORE: 5914 Bonus ------- Follower Combat Kills 219 Met Imprinter 300 Was Imprinted 300 Cogmind --------- Core Integrity 0/850 Matter 39/300 Energy 100/100 System Corruption 7% Temperature Cool (6) Movement Core (50) Location -6/Factory Parts ------- > --- POWER (1) -------- (None) > --- PROPULSION (4) --- (None) > --- UTILITY (7) ------ (None) > --- WEAPON (3) ------- (None) > --- INVENTORY (5) ---- Improved Deuterium Engine Hacking Drone Bay (1/1) Barrage Gun Barrage Gun Bore Cannon Peak State ------------ > --- POWER ------------ Light Fission Core > --- PROPULSION ------- Compact Wheel Compact Wheel Compact Wheel > --- UTILITY ---------- Heat Sink Large Storage Unit Large Matter Pod Structural Scanner Visual Processing Unit Seismic Detector Layered Light Armor Plating > --- WEAPON ----------- Guided EMP Blaster Scatter Rocket Array > --- INVENTORY -------- Improved Deuterium Engine Hacking Drone Bay Heavy Riot Gun Beamcaster Barrage Gun Barrage Gun Barrage Gun Heavy Flak Cannon Bore Cannon [Rating: 41] Favorites ----------- Power Ion Engine Engine Ion Engine Power Core Light Fission Core Propulsion Compact Wheel Treads Light Treads Wheel Compact Wheel Hover Unit Hover Unit Flight Unit Xenon Bombardment Thruster Utility Medium Storage Unit Device Hacking Drone Bay Storage Medium Storage Unit Processor Visual Processing Unit Protection Layered Light Armor Plating Weapon Beamcaster Energy Gun Beamcaster Ballistic Gun Assault Rifle Ballistic Cannon Heavy Flak Cannon Launcher Scatter Rocket Array Build | -11 -10 -9 -9 -7 -6 -6 ------- Run | Yrd Mat Mat Min Zio Pro Fac Slots Evolved 8 | . . 2 . . . 6 Power . | . . . . . . . Propulsion 2 | . . 2 . . . . Utility 5 | . . . . . . 5 Weapon 1 | . . . . . . 1 Parts Attached 72 | 8 19 11 4 8 3 19 Power 7 | 1 2 1 1 . 1 1 Engine 6 | 1 2 1 1 . 1 . Core 1 | . . . . . . 1 Reactor . | . . . . . . . Propulsion 27 | 4 11 9 1 . . 2 Treads 2 | 2 . . . . . . Leg . | . . . . . . . Wheel 21 | 2 10 7 1 . . 1 Hover 1 | . 1 . . . . . Flight 3 | . . 2 . . . 1 Utility 16 | 1 4 . 1 1 1 8 Device 6 | . 1 . 1 1 . 3 Storage 7 | 1 3 . . . 1 2 Processor 1 | . . . . . . 1 Hackware . | . . . . . . . Protection 2 | . . . . . . 2 Artifact . | . . . . . . . Weapon 22 | 2 2 1 1 7 1 8 Energy Gun 9 | . 1 1 1 4 . 2 Energy Cannon . | . . . . . . . Ballistic Gun 6 | 2 1 . . 3 . . Ballistic Cannon 5 | . . . . . 1 4 Launcher 2 | . . . . . . 2 Special Weapon . | . . . . . . . Impact Weapon . | . . . . . . . Slashing Weapon . | . . . . . . . Piercing Weapon . | . . . . . . . Special Melee Weapon . | . . . . . . . Unidentified Prototypes 3 | . . . . 1 . 2 Parts Lost 16 | . 3 1 . . 1 11 Power 2 | . 1 . . . . 1 Propulsion 7 | . 2 1 . . 1 3 Utility 4 | . . . . . . 4 Weapon 3 | . . . . . . 3 Highest Loss Streak 4 | . 2 1 . . 1 4 To Critical Strikes . | . . . . . . . Average Slot Usage (%) 91 | . 89 97 98 100 94 68 Engine 9 | . 11 11 10 11 11 . Wheel 34 | . 22 41 44 44 39 14 Device 11 | . 12 11 10 11 11 13 Storage 11 | . 14 11 11 11 11 11 Energy Gun 12 | . 11 11 21 15 15 2 Ballistic Gun 6 | . 15 11 . 6 . . Ballistic Cannon 1 | . . . . . 6 4 Launcher 1 | . . . . . . 6 Naked Turns 53 | . . . . . . 53 Heaviest Build 180 | 14 21 21 22 25 44 180 Greatest Support 58 | 40 26 58 58 58 58 48 Greatest Overweight (x) 6 | . 6 6 . . . 4 Average Overweight (x) . | . . . . . . 1 Largest Inventory Capacity 30 | 8 10 10 10 10 15 30 Average Capacity 11 | 6 6 10 10 10 14 18 Most Carried 12 | 5 10 10 10 10 12 11 Average Carried 8 | 3 5 9 8 9 10 7 Final Capacity 15 | 8 10 10 10 10 15 5 Final Carried 12 | 5 10 9 9 10 12 5 Class Distribution -------------------- 80% | Mutant 4% | Tank 4% | Scavenger-Mutant Dominant Class ---------------- Mutant | -10/Materials Mutant | -9/Materials Scavenger-Mutant | -9/Mines Mutant | -7/Zion Mutant | -6/Proximity Caves Tank | -6/Factory Resources | -11 -10 -9 -9 -7 -6 -6 ----------- Run | Yrd Mat Mat Min Zio Pro Fac Matter Collected 1276 | 229 389 274 96 71 111 106 Remotely . | . . . . . . . Salvage Created 1692 | 47 332 507 367 . 176 263 Parts 127 | 1 22 45 34 . 4 21 Haulers Intercepted . | . . . . . . . Recyclers Shooed 2 | . . 1 1 . . . Parts Field Recycled . | . . . . . . . Retrieved Matter . | . . . . . . . Parts Self-Destructed 14 | . . . . . 14 . Prevented 6 | . . . . . 6 . Kills | -11 -10 -9 -9 -7 -6 -6 ------- Run | Yrd Mat Mat Min Zio Pro Fac Combat Hostiles Destroyed 40 | . 9 11 9 . 4 7 Guns 33 | . 9 11 9 . 2 2 Cannons 5 | . . . . . 2 3 AOE 2 | . . . . . . 2 Classes Destroyed 13 | 1 4 3 . . 2 3 Worker 10 | . 5 1 1 . . 3 Builder 2 | . . . . . . 2 Tunneler 3 | . . 1 2 . . . Recycler 3 | 1 . 1 1 . . . Mechanic 1 | . . . . . . 1 Operator 2 | . . 1 . . . 1 Watcher 4 | . 2 2 . . . . Swarmer 21 | . 6 6 7 . . 2 Grunt 9 | . 3 3 2 . . 1 Sentry 5 | . . 2 . . . 3 Programmer 1 | . . . . . . 1 Thug 2 | . . . . . 2 . Savage 1 | . . . . . 1 . Butcher 1 | . . . . . 1 . Best Kill Streak 7 | 1 6 6 4 . 3 7 Combat Bots Only 6 | . 6 4 4 . 3 2 Max Kills in Single Turn 3 | 1 1 1 2 . 1 3 Gunslinging 1 | . . . 1 . . . Exploded 1 | . . . . . . 1 Melee . | . . . . . . . Uniques/NPCs Destroyed . | . . . . . . . Combat | -11 -10 -9 -9 -7 -6 -6 -------- Run | Yrd Mat Mat Min Zio Pro Fac Hostile Shots Fired 440 | . 64 42 20 . 29 285 Missed 151 | . 18 7 4 . 7 115 Damage Taken 3119 | . 317 372 109 . 268 2053 Core 1057 | . 56 82 29 . 37 853 Absorbed by Shields 36 | . . . . . . 36 Ignored by Resistances 930 | . 109 113 37 . 82 589 Regen/Repaired (Parts) 69 | . 69 . . . . . Core Remaining (%) 80 | 100 77 . . . 63 . Volleys Fired 122 | 2 41 28 16 . 11 24 Largest 3 | 2 2 2 2 . 2 3 Hottest 185 | 40 85 85 110 . 128 185 Shots Fired 230 | 4 81 55 32 . 22 36 Gun 193 | 4 81 55 32 . 11 10 Cannon 28 | . . . . . 11 17 Launcher 9 | . . . . . . 9 Special . | . . . . . . . Kinetic 111 | 4 49 28 2 . 11 17 Thermal 81 | . 32 14 14 . 11 10 Explosive 5 | . . . . . . 5 Electromagnetic 33 | . . 13 16 . . 4 Robot Hit Streak 33 | 3 19 19 33 . 13 10 Robot Miss Streak 4 | . 3 2 3 . 4 4 Penetration Max . | . . . . . . . Secondary Targets 3 | . . . 3 . . . Max Gunslinging Chain 1 | . . . 1 . . . Shots Hit Robots 159 | 3 52 41 24 . 17 22 Core Hits 122 | 2 20 27 18 . 25 30 Critical Kills 2 | . 1 . . . . 1 Critical Parts Destroyed 3 | . . . . . . 3 Critical Strikes 9 | . 1 . . . 3 5 Burn 4 | . . . . . 3 1 Destroy 5 | . 1 . . . . 4 Melee Attacks . | . . . . . . . Impact . | . . . . . . . Slashing . | . . . . . . . Piercing . | . . . . . . . Sneak Attacks . | . . . . . . . Combat Hostiles . | . . . . . . . Follow-up Attacks . | . . . . . . . Damage Inflicted 3731 | 44 758 633 353 . 523 1420 Guns 2040 | 43 758 589 353 . 168 129 Cannons 686 | . . . . . 355 331 Explosions 945 | . . 40 . . . 905 Melee . | . . . . . . . Ramming 60 | 1 . 4 . . . 55 Kinetic 1376 | 43 416 221 10 . 355 331 Thermal 1359 | . 342 235 110 . 168 504 Explosive 459 | . . . . . . 459 Electromagnetic 477 | . . 173 233 . . 71 Impact . | . . . . . . . Slashing . | . . . . . . . Piercing . | . . . . . . . Highest Corruption 7 | . . . . . . 7 Average Corruption 1 | . . . . . . 1 Corruption Purged . | . . . . . . . Corruption Blocked . | . . . . . . . Effects 4 | . . . . . . 4 Message Errors 2 | . . . . . . 2 Heat Flow Errors 1 | . . . . . . 1 Energy Discharges 1 | . . . . . . 1 Overload Shots . | . . . . . . . Overflow Damage 193 | . . 6 . . . 187 Projectiles . | . . . . . . . Explosions 193 | . . 6 . . . 187 Melee . | . . . . . . . Knockbacks 3 | . . . . . 3 . Impact . | . . . . . . . Kinetic 3 | . . . . . 3 . Secondary . | . . . . . . . Self-Inflicted Damage 134 | . . 107 . . . 27 Shots 2 | . . 2 . . . . Rammed 11 | 1 1 2 . . . 7 Targets Rammed 11 | 1 1 2 . . . 7 Kicked . | . . . . . . . Crushed . | . . . . . . . Highest Temperature 291 | . 220 60 185 . 189 291 Average Temperature 59 | . 55 18 59 . 76 94 Received Heat Transfer 579 | . 93 78 42 . 51 315 Siege Activations . | . . . . . . . Robots Corrupted . | . . . . . . . Combat Hostiles . | . . . . . . . Parts Fried . | . . . . . . . Impact Corruptions 1 | . . . . . . 1 Robots Melted . | . . . . . . . Combat Hostiles . | . . . . . . . Parts Melted 4 | . 1 1 . . 1 1 Heat Transferred 2794 | . 851 581 259 . 518 585 Parts Sabotaged . | . . . . . . . Parts Stolen . | . . . . . . . Parts Stripped . | . . . . . . . Power Chain Reactions 2 | . . 1 . . . 1 Alert | -11 -10 -9 -9 -7 -6 -6 ------- Run | Yrd Mat Mat Min Zio Pro Fac Peak Influence 348 | 5 291 268 348 . . 264 Initial 88 | . 2 55 88 . . 34 Average 118 | 4 139 179 237 . . 59 Maximum Alert Level 1 | . 1 1 1 . . 1 Low Security (%) 79 | 100 83 53 51 . . 97 Level 1 20 | . 16 46 48 . . 2 Level 2 . | . . . . . . . Level 3 . | . . . . . . . Level 4 . | . . . . . . . Level 5 . | . . . . . . . High Security . | . . . . . . . Max Security . | . . . . . . . Squads Dispatched 13 | . 1 1 1 . . 10 Investigation 2 | . 1 . 1 . . . Extermination 1 | . . . . . . 1 Reinforcement 4 | . . 1 . . . 3 Assault . | . . . . . . . Garrison 6 | . . . . . . 6 Intercept . | . . . . . . . Searches Triggered . | . . . . . . . Construction Impeded 2 | . . . . . . 2 Haulers Reinforced . | . . . . . . . Active Scanning Responses . | . . . . . . . Cargo Convoy Interrupts 1 | . . . . . . 1 Stealth | -11 -10 -9 -9 -7 -6 -6 --------- Run | Yrd Mat Mat Min Zio Pro Fac Distress Signals 4 | . 1 2 . . . 1 Communications Jammed . | . . . . . . . Distress Signals . | . . . . . . . Times Spotted 94 | . 19 21 9 . 13 32 Peak Tracking Total 14 | . 8 6 4 . 5 14 Tactical Retreats 8 | . 2 1 1 . 1 3 Traps | -11 -10 -9 -9 -7 -6 -6 ------- Run | Yrd Mat Mat Min Zio Pro Fac Traps Triggered 3 | . . . . . . 3 Indirectly . | . . . . . . . Trap Hack Attempts . | . . . . . . . Triggered . | . . . . . . . Disarmed . | . . . . . . . Reprogrammed . | . . . . . . . Reused . | . . . . . . . Traps Extracted . | . . . . . . . Installed . | . . . . . . . Triggered 1 | . . . . . 1 . Machines | -11 -10 -9 -9 -7 -6 -6 ---------- Run | Yrd Mat Mat Min Zio Pro Fac Machines Disabled 19 | . . 2 . . . 17 Max in Single Turn 16 | . . 1 . . . 16 Machines Repaired . | . . . . . . . Machines Dismantled . | . . . . . . . Machines Sabotaged . | . . . . . . . Overloaded Fab Kills . | . . . . . . . Hacking | -11 -10 -9 -9 -7 -6 -6 --------- Run | Yrd Mat Mat Min Zio Pro Fac Machines Accessed 4 | . 3 . 1 . . . Terminals 2 | . 1 . 1 . . . Fabricators . | . . . . . . . Repair Stations 1 | . 1 . . . . . Recycling Units 1 | . 1 . . . . . Scanalyzers . | . . . . . . . Garrison Access . | . . . . . . . Total Hacks 14 | . 11 . 3 . . . Successful 6 | . 6 . . . . . Failed 8 | . 5 . 3 . . . Catastrophic 2 | . 1 . 1 . . . Database Lockouts . | . . . . . . . Manual 16 | . 3 . 3 9 . 1 Terminals 7 | . 4 . 3 . . . Fabricators . | . . . . . . . Repair Stations 3 | . 3 . . . . . Recycling Units 4 | . 4 . . . . . Scanalyzers . | . . . . . . . Garrison Access . | . . . . . . . Terminal Hacks 1 | . 1 . . . . . Prototype ID Bank 1 | . 1 . . . . . Fabricator Hacks . | . . . . . . . Repair Station Hacks 2 | . 2 . . . . . Scan Component 1 | . 1 . . . . . Repair 1 | . 1 . . . . . Recycling Unit Hacks 3 | . 3 . . . . . Recycle Component 1 | . 1 . . . . . Process 1 | . 1 . . . . . Report Inventory 1 | . 1 . . . . . Scanalyzer . | . . . . . . . Garrison Access Hacks . | . . . . . . . Unauthorized Hacks . | . . . . . . . Terminals . | . . . . . . . Fabricators . | . . . . . . . Repair Stations . | . . . . . . . Recycling Units . | . . . . . . . Scanalyzers . | . . . . . . . Garrison Access . | . . . . . . . Data Cores Recovered 1 | . . . . . . 1 Used . | . . . . . . . Hacking Detections 3 | . 2 . 1 . . . Full Trace Events 2 | . 1 . 1 . . . Feedback Events . | . . . . . . . Feedback Blocked . | . . . . . . . Robot Schematics Acquired 2 | . . . . 2 . . Robots Built . | . . . . . . . Authchips . | . . . . . . . Time . | . . . . . . . Total Robot Build Rating . | . . . . . . . Part Schematics Acquired 15 | . . . . 15 . . Parts Built . | . . . . . . . Authchips . | . . . . . . . Time . | . . . . . . . Total Part Build Rating . | . . . . . . . Parts Repaired 1 | . 1 . . . . . Time 26 | . 26 . . . . . Parts Recycled 1 | . 1 . . . . . Recycled Matter 263 | . 263 . . . . . Retrieved Matter . | . . . . . . . Retrieved Components . | . . . . . . . Parts Scanalyzed . | . . . . . . . Part Schematics Acquired . | . . . . . . . Parts Damaged . | . . . . . . . Bothacking | -11 -10 -9 -9 -7 -6 -6 ------------ Run | Yrd Mat Mat Min Zio Pro Fac Used RIF Installer . | . . . . . . . Robots Hacked . | . . . . . . . Non-combat . | . . . . . . . Combat . | . . . . . . . Robot Hacks Applied . | . . . . . . . Relay Couplers Released 4 | . . . . . . 4 Programmers 4 | . . . . . . 4 Fabnet Peak Effective % . | . . . . . . . Robots Rewired . | . . . . . . . Allies Hacked . | . . . . . . . Hacks Repelled . | . . . . . . . Allies | -11 -10 -9 -9 -7 -6 -6 -------- Run | Yrd Mat Mat Min Zio Pro Fac Total Allies 7 | . . . . 4 . 3 Largest Group 4 | . . . . 4 4 3 Highest-Rated Group 149 | . . . . 149 149 109 Highest-Rated Ally 38 | . . . . 38 38 38 Total Orders 5 | . . . . 4 . 1 RETURN 5 | . . . . 4 . 1 Ally Attacks 40 | . . . . . 32 8 Total Damage 790 | . . . . . 559 231 Kills 9 | . . . . . 8 1 Allies Corrupted . | . . . . . . . Allies Melted . | . . . . . . . Intel | -11 -10 -9 -9 -7 -6 -6 ------- Run | Yrd Mat Mat Min Zio Pro Fac Robot Analysis Total . | . . . . . . . Derelict Logs Recovered 2 | . . . 1 . 1 . Drone Launches 5 | . . . . 4 . 1 Drone Recoveries 5 | . . . . 4 . 1 Exploration | -11 -10 -9 -9 -7 -6 -6 ------------- Run | Yrd Mat Mat Min Zio Pro Fac Turns Passed 6020 | 236 795 741 233 2248 726 1041 Spaces Moved 5254 | 172 639 536 178 2293 606 830 Core 161 | 15 10 4 . . . 132 Treads 93 | 93 . . . . . . Legs . | . . . . . . . Wheels 4955 | 64 622 531 178 2293 606 661 Hover 7 | . 7 . . . . . Flight 38 | . . 1 . . . 37 Fastest Speed 40 | 50 80 90 95 95 95 40 Average Speed 98 | 120 93 96 95 95 96 110 Slowest Speed 440 | 160 350 440 95 95 100 160 Overloaded Moves . | . . . . . . . Propulsion Burnouts . | . . . . . . . Robots Hopped 1 | . . . . . . 1 Cave-ins Triggered . | . . . . . . . Exploration Rate (%) 43 | 7 51 32 33 93 68 21 Regions Visited 6 Branch Regions 3 Pre-discovered Areas 2 | . . . . 2 . . Known Exits Taken . | . . . . . . . Unknown Exits Taken 6 | 1 1 1 1 1 1 . Scrap Searched 8 | . . . 1 3 4 . Spaces Dug . | . . . . . . . Terrain Destroyed 116 | . . 40 . . . 76 Melee . | . . . . . . . Projectile 1 | . . . . . . 1 AOE 115 | . . 40 . . . 75 Terrain Rammed . | . . . . . . . Walls Destroyed . | . . . . . . . Machines Disabled . | . . . . . . . Actions | -11 -10 -9 -9 -7 -6 -6 --------- Run | Yrd Mat Mat Min Zio Pro Fac Total 5868 | 194 756 704 212 2362 722 918 Wait 316 | . 35 115 6 46 97 17 Move 5246 | 171 638 535 177 2292 605 828 Hop 1 | . . . . . . 1 Pick Up 33 | 9 8 3 2 8 3 . Fast Attach 34 | 4 12 7 2 1 . 8 Attach 18 | 3 1 3 2 . . 9 Detach 17 | 1 2 2 3 . . 9 Swap 20 | 1 6 1 . 7 3 2 Drop 41 | 2 12 8 4 8 3 4 Fire 122 | 2 41 28 16 . 11 24 Melee . | . . . . . . . Ram 10 | . 1 2 . . . 7 Kick . | . . . . . . . Crush 1 | 1 . . . . . . Escape Stasis 9 | . . . . . . 9 Rewire . | . . . . . . . Trap . | . . . . . . . Miscellaneous . | . . . . . . . Route ------- -11/Scrapyard -10/Materials -9/Materials -9/Mines (discovered 2 exits: [*Mat] / *Zio) -7/Zion -6/Proximity Caves -6/Factory (discovered 1 exit: *Low) History --------- Turn | Location | Event 8 | -11/Scrapyard | Discovered new exit (range 15) 237 | -11/Scrapyard | Entered Materials 343 | -10/Materials | Build established: Mutant 885 | -10/Materials | Discovered new exit (range 3) 926 | -10/Materials | Repaired Assault Rifle 1032 | -10/Materials | Entered another Materials area 1032 | -9/Materials | Evolved 2 slots: Propulsion x2 1764 | -9/Materials | Discovered new exit (range 8) 1773 | -9/Materials | Entered Mines 1884 | -9/Mines | Learned 8 Materials zone layouts 1884 | -9/Mines | Discovered new exit (range 7) 2001 | -9/Mines | A Derelict revealed a hidden shortcut to a safe place 2006 | -9/Mines | Entered Zion 2100 | -7/Zion | Given the Hacking Drone Bay 2100 | -7/Zion | Found Prototype Device 2101 | -7/Zion | Identified Hacking Drone Bay 2383 | -7/Zion | Learned location of Quarantine (-3) 2809 | -7/Zion | Imprinted 2811 | -7/Zion | Declared Zion's savior 4112 | -7/Zion | Discovered new exit (range 12) 4254 | -7/Zion | Entered Proximity Caves 4254 | -6/Proximity Caves | Accompanied by 4 allies 4594 | -6/Proximity Caves | Attracted the attention of an 0b10 checkpoint 4792 | -6/Proximity Caves | Attacked by a faux Warlord 4928 | -6/Proximity Caves | Discovered new exit (range 9) 4980 | -6/Proximity Caves | Entered Factory 4980 | -6/Factory | Accompanied by 3 allies 4980 | -6/Factory | Evolved 6 slots: Utility x5, Weapon x1 4981 | -6/Factory | Identified exit to Lower Caves 5051 | -6/Factory | Garrison activated, responded to threat 5146 | -6/Factory | Garrison activated, responded to threat 5227 | -6/Factory | Found Prototype Launcher 5227 | -6/Factory | Identified Scatter Rocket Array 5554 | -6/Factory | Allied Derelicts emerged from ambush trap array 5748 | -6/Factory | Lost 3 allies 5894 | -6/Factory | Released all parts (5) 5921 | -6/Factory | Core integrity fell below 50% 5923 | -6/Factory | Lost 4 parts (1p1n2u) 5954 | -6/Factory | Core integrity fell below 20% 6021 | -6/Factory | Cargo convoy interrupted 6021 | -6/Factory | Destroyed by A-27 Freighter with PD Laser Last Messages --------------- 05979_ Field strength at 55. 05984_ Field strength at 33. 05985_ Field strength at 23. 05986_ Field strength at 14. 05987_ S-27 Virus destroyed. 05988_ K-01 Serf collects debris. 05988_ P-60 Hacker resets K-01 Serf, system corruption cleaned. 05989_ S-27 Virus destroyed. 05991_ Stasis field depleted. 05991_ K-01 Serf collects debris. 06000_ U-05 Engineer lays Concrete. 06010_ GAJMPQT Y=#XDOXFNPLTVTY 06020_ C-30 ARC bursts open, deploying its payload. 06020_ H-66 Slayer unfolds itself. 06020_ P-60 Hacker unfolds itself. 06020_ X-72 Disruptor unfolds itself. 06020_ M-28 Smith unfolds itself. 06020_ Plasma Rifle destroyed. 06020_ Slug penetrates M-28 Smith. 06021_ ALERT: Cargo convoy interrupted, initiating access lockdown. Map ----- +----------------------------------------------------+ | ###????????????????????????????????????# # | | #????????????????????????????????????# / | | #??#+##??????????????????????????????# # | | #??# ??????????????????###########??# # | | #??# #??????????????????# #### # | | " #### ###????????????????# /*^ # | | ## #????????????????# #% # | | +###! ! #????????????????# #= | | +????????##########/########%^ | | #### = #????????# / =[ | | ???# #????????# """" """" #### | | ???## ##????????# """" """" #??# # | | ????# ########### """" """" #??# """"" # | | ##### " """"""" # """"g"""" #??# """"" # | | ## # """"""" # g #### """ # | | ** ## # """"""" # """"g"""" !## # | | * ## # """"""" # """" """" ## # | | * ## # # """" """" ## ! | | ## # ! # """" """" ## ! ### | | ## # # ## ! #?? | | ## ########### ## #?? | | #+### #######T ########p####### ##? | | w k w ## | | "" | | """ F" | | x @ """ " | | x """ "" | | [ ip A ## | | [!= thuumu """ #? | | #######+############### """ #? | | ?# []! # """ #? | | ?# = # #? | | ?# """ """ #R k "" #? | | ?# """ """ # # % "" # | | ## """ """ + " + | | + ! # "" = #? | | ## """ # !# *[[ #? | | ?# """ # #? | | ?# """ ############ #### ## #? | | ?# !!/ ## """T""" ## #? | | ?# !!/ [ ## ## #? | | ?# !// *%= # "## #? | | ?########### ## # ## "## #? | | ???????????#### ## "## #? | | ??????????????# "" "" # # #?# #? | | ??????????????# "F "" ## # ### #? | | ??????????????# """"" + #? | | ??????????????########## ######### ## "## #? | | ???????????????????????## = !"## #? | | ????????????????????????# # %! #? | +----------------------------------------------------+ Best States ------------- Heat Dissipation 47 Energy Generation 18 Energy Capacity 290 Matter Stores 423 Matter Capacity 450 Sight Range 18 Terrain Scan Density 10 Armor Coverage 150 Resistance: KI 20 Resistance: TH 20 Resistance: EX 20 Resistance: EM 20 Resistance: I 20 Resistance: S 20 Resistance: P 20 Evasion (%) 62 Recoil Reduction 2 Offensive Hacking 10 Item Schematics ----------------- Slug Cannon | -7/Zion | Archive Adv. Terrain Scanner | -7/Zion | Archive Energy Filter | -7/Zion | Archive Adv. Melee Analysis Suite | -7/Zion | Archive Imp. Deuterium Engine | -7/Zion | Archive Recoil Nullifier | -7/Zion | Archive Mak. Transmission Jammer | -7/Zion | Archive Recalibrator | -7/Zion | Archive Focal Shield | -7/Zion | Archive Mak. Laser | -7/Zion | Archive Mapping Drone Bay | -7/Zion | Archive Phase Cannon | -7/Zion | Archive Coolant Injector | -7/Zion | Archive Mak. Shrapnel Gun | -7/Zion | Archive Hvy. Flak Cannon | -7/Zion | Archive Robot Schematics ------------------ S-27 Virus | -7/Zion | Archive Y-54 Guardian | -7/Zion | Archive Fabricated ------------ Nothing Alien Tech Used ----------------- None Achievements -------------- I'm Back, Baby! It Was An Accident, I Swear Robot Respite Tank The One Challenges ------------ None Game ------ Seed SubdwellerModifiedMatter Manual? 0 Play Time 00:54:15 Cumulative 5.4 hours Start 2024.04.02 @ 15:05:34 End 2024.04.02 @ 16:02:31 Sessions 1 Manual Loads 0 Difficulty Adventurer Special Mode None Game No. 6 Rogue 0 Adventurer 6 Explorer 0 Win Type - Total 0 Types 0/0/0/0/0/0/0/0/0 Lore% 4 Gallery% 12 Achievement% 12 Wizard Run 0 Options --------- Layout 0 ASCII 0 Keyboard 1 Movement Numpad Keybinds 0 Fullscreen 2 Font 18/SmallcapsGlow Map View 76x50 Zoom Use 1% Tactical HUD 1 Map Filters NONE Filters NONE Steam 1 RUN: b89b16e2-011e-4a79-ada6-7e903fe59673